bitfinex/quotes_BTCUSD_20241025
["timestamp","ask_amount","ask_price","bid_price","bid_amount"]
[1729852786913,0.17453594,67798.0,67797.0,0.001648]
[1729852787127,0.17453594,67798.0,67797.0,0.00626049]
[1729852787767,0.17453594,67798.0,67797.0,0.001648]
[1729852791161,0.32203194,67798.0,67797.0,0.001648]
[1729852791596,0.17453594,67798.0,67797.0,0.001648]
[1729852792003,0.32203194,67798.0,67797.0,0.001648]
[1729852796564,0.36620473,67798.0,67797.0,0.001648]
[1729852797598,0.55079494,67798.0,67797.0,0.001648]
[1729852797818,0.65264955,67798.0,67797.0,0.001648]
[1729852798031,0.74099514,67798.0,67797.0,0.001648]
[1729852798255,0.65264955,67798.0,67797.0,0.001648]
[1729852798479,0.65064955,67798.0,67797.0,0.001648]
[1729852799105,0.69670291,67798.0,67797.0,0.001648]
[1729852799957,0.8292213,67798.0,67797.0,0.001648]
[1729852800439,1.1800896,67798.0,67797.0,0.001648]
[1729852800661,0.82168289,67798.0,67797.0,0.001648]
[1729852800873,0.92537336,67798.0,67797.0,0.001648]
[1729852801313,0.81968289,67798.0,67797.0,0.001648]
[1729852801565,0.92337336,67798.0,67797.0,0.001648]
[1729852803739,0.92537336,67798.0,67797.0,0.001648]
[1729852803971,0.92337336,67798.0,67797.0,0.001648]
[1729852806248,1.05572505,67798.0,67797.0,0.001648]
[1729852806475,0.95203458,67798.0,67797.0,0.001648]
[1729852806708,1.05572505,67798.0,67797.0,0.001648]
[1729852806929,0.92337336,67798.0,67797.0,0.001648]
[1729852807162,1.05572505,67798.0,67797.0,0.001648]
[1729852807387,0.81968289,67798.0,67797.0,0.001648]
[1729852807601,0.90037336,67798.0,67797.0,0.001648]
[1729852807825,0.85414249,67798.0,67797.0,0.001648]
[1729852808280,0.75045202,67798.0,67797.0,0.001648]
[1729852808498,0.96440289,67798.0,67797.0,0.001648]
[1729852808721,0.94234874,67798.0,67797.0,0.001648]
[1729852808940,0.85414249,67798.0,67797.0,0.001648]
[1729852809193,0.72865923,67798.0,67797.0,0.001648]
[1729852809416,0.42715796,67798.0,67797.0,0.001648]
[1729852809628,0.38305824,67798.0,67797.0,0.001648]
[1729852809847,0.30415824,67798.0,67797.0,0.001648]
[1729852818038,0.00115843,67798.0,67797.0,0.001648]
[1729852818254,0.15365443,67798.0,67797.0,0.001648]
[1729852825228,0.14865443,67798.0,67797.0,0.001648]
[1729852825425,0.15365443,67798.0,67797.0,0.001648]
[1729852828842,0.14865443,67798.0,67797.0,0.001648]
[1729852829052,0.15365443,67798.0,67797.0,0.001648]
[1729852830541,0.14865443,67798.0,67797.0,0.001648]
[1729852831475,0.000824,67801.0,67797.0,0.001648]
[1729852831476,0.000824,67801.0,67797.0,0.319147]
[1729852831705,0.00198243,67801.0,67800.0,0.147492]
[1729852831921,0.00198243,67801.0,67800.0,0.238992]
[1729852833237,0.00198243,67801.0,67800.0,0.24360393]
[1729852836334,0.00198243,67801.0,67800.0,0.23928261]
[1729852836539,0.00198243,67801.0,67800.0,0.23194274]
[1729852836950,0.00198243,67801.0,67800.0,0.23013962]
[1729852840625,0.00198243,67801.0,67800.0,0.23013949]
[1729852842404,0.00202243,67801.0,67800.0,0.23013949]
[1729852843935,0.00202243,67801.0,67800.0,0.22552769]
[1729852844152,0.00202243,67801.0,67800.0,0.23013946]
[1729852844835,0.00202243,67801.0,67800.0,0.2287024]
[1729852847571,0.00202243,67801.0,67800.0,0.22409063]
[1729852847798,0.00202243,67801.0,67800.0,0.2287024]
[1729852851142,0.00202243,67801.0,67800.0,0.22409063]
[1729852851372,0.00202243,67801.0,67800.0,0.22870239]
[1729852857279,0.00202243,67801.0,67800.0,0.23035039]
[1729852857969,0.00202243,67801.0,67800.0,0.24138079]
[1729852858453,0.00202243,67801.0,67800.0,0.22573863]
[1729852858680,0.00202243,67801.0,67800.0,0.24138304]
[1729852859775,0.000864,67801.0,67800.0,0.24138304]
[1729852861107,0.000864,67801.0,67800.0,0.24138292]
[1729852864544,0.000864,67801.0,67800.0,0.2367713]
[1729852864764,0.000864,67801.0,67800.0,0.23035023]
[1729852865003,0.000864,67801.0,67800.0,0.24139529]
[1729852866536,4e-05,67801.0,67800.0,0.24139529]
[1729852866760,0.00115843,67803.0,67802.0,0.147488]
[1729852866979,0.00115843,67803.0,67802.0,0.16314466]
[1729852867457,0.31724961,67813.0,67812.0,0.147466]
[1729852867458,0.22144961,67813.0,67812.0,0.147466]
[1729852867675,0.22144961,67813.0,67812.0,0.15851106]
[1729852867931,0.00115843,67817.0,67812.0,0.01104506]
[1729852868192,0.000824,67819.0,67816.0,0.20738094]
[1729852868193,0.00198243,67819.0,67816.0,0.20738094]
[1729852868398,0.00198243,67819.0,67818.0,0.147453]
[1729852868859,0.00198243,67819.0,67818.0,0.16586314]
[1729852869315,0.00198243,67819.0,67818.0,0.42431567]
[1729852869316,0.000824,67819.0,67818.0,0.42431567]
[1729852869548,0.000824,67819.0,67818.0,0.50326695]
[1729852870502,0.000824,67819.0,67818.0,0.49588988]
[1729852871475,0.000824,67819.0,67818.0,0.50326588]
[1729852872176,0.000824,67819.0,67818.0,0.59596588]
[1729852876167,0.000824,67819.0,67818.0,0.58493281]
[1729852876610,0.000824,67819.0,67818.0,0.57755681]
[1729852876840,0.000824,67819.0,67818.0,0.58854833]
[1729852877045,0.000824,67819.0,67818.0,0.57755681]
[1729852877260,0.000824,67819.0,67818.0,0.58493252]
[1729852877932,0.000824,67819.0,67818.0,0.59592671]
[1729852878613,0.000824,67819.0,67818.0,0.60476828]
[1729852879933,0.000824,67819.0,67818.0,0.59739257]
[1729852880143,0.000824,67819.0,67818.0,0.60476741]
[1729852884321,0.000824,67819.0,67818.0,0.60476754]
[1729852890680,0.000824,67819.0,67818.0,0.52286754]
[1729852890869,0.000824,67819.0,67818.0,0.43016754]
[1729852891402,0.000824,67819.0,67818.0,0.42132597]
[1729852891608,0.000824,67819.0,67818.0,0.41033247]
[1729852891864,0.000824,67819.0,67818.0,0.42131582]
[1729852892306,0.000824,67819.0,67818.0,0.40894016]
[1729852892760,0.000824,67819.0,67818.0,0.30894016]
[1729852893192,0.000824,67819.0,67818.0,0.147453]
[1729852894068,0.000824,67819.0,67818.0,0.247453]
[1729852894494,0.000824,67819.0,67818.0,0.25845679]
[1729852895639,0.000824,67819.0,67818.0,0.26583326]
[1729852898177,0.173924,67819.0,67818.0,0.16583326]
[1729852898392,0.173924,67819.0,67818.0,0.15482947]
[1729852898611,0.17508243,67819.0,67818.0,0.15482947]
[1729852898854,0.17508243,67819.0,67818.0,0.147453]
[1729852899068,0.17508243,67819.0,67818.0,0.15482947]
[1729852899292,0.17508243,67819.0,67818.0,0.147453]
[1729852908598,0.173924,67819.0,67818.0,0.147453]
[1729852908814,0.17508243,67819.0,67818.0,0.147453]
[1729852910148,0.173924,67819.0,67818.0,0.147453]
[1729852910359,0.17508243,67819.0,67818.0,0.147453]
[1729852915565,0.17474806,67819.0,67818.0,0.147453]
[1729852919508,0.17474806,67819.0,67818.0,0.15483002]
[1729852920724,0.17358963,67819.0,67818.0,0.15483002]
[1729852920944,0.17474806,67819.0,67818.0,0.15483002]
[1729852921197,0.17474806,67819.0,67818.0,0.15483001]
[1729852921425,0.00164806,67819.0,67818.0,0.15483001]
[1729852923535,0.00164806,67819.0,67818.0,0.147453]
[1729852923706,0.00164806,67819.0,67818.0,0.15482982]
[1729852923920,0.00048963,67819.0,67818.0,0.15482982]
[1729852924123,0.17774806,67819.0,67818.0,0.15482982]
[1729852926596,0.17774806,67819.0,67818.0,0.00737682]
[1729852926810,0.17774806,67819.0,67818.0,0.15482982]
[1729852927016,0.17774806,67819.0,67818.0,0.00737682]
[1729852927423,0.00115843,67813.0,67812.0,0.442397]
[1729852928470,0.00115843,67813.0,67812.0,0.444045]
[1729852932184,0.00115843,67813.0,67812.0,0.001648]
[1729852932376,0.00115843,67813.0,67812.0,0.149114]
[1729852932623,0.00115843,67813.0,67812.0,0.001648]
[1729852932800,0.00115843,67813.0,67812.0,0.149114]
[1729852934768,0.00115843,67813.0,67812.0,0.001648]
[1729852935192,0.00115843,67813.0,67812.0,0.149114]
[1729852937315,0.00115843,67814.0,67813.0,0.294928]
[1729852937748,0.00115843,67814.0,67813.0,0.442392]
[1729852943190,0.00115843,67814.0,67813.0,0.294928]
[1729852943418,0.00115843,67814.0,67813.0,0.442392]
[1729852944794,0.00115843,67815.0,67814.0,0.147462]
[1729852958797,0.00115843,67815.0,67814.0,0.15852702]
[1729852962313,0.00115843,67815.0,67814.0,0.147462]
[1729852963735,0.00115843,67815.0,67814.0,0.15852701]
[1729852964593,0.00115843,67815.0,67814.0,0.16017501]
[1729852965348,0.00115843,67815.0,67814.0,0.16017502]
[1729852968202,0.17355843,67815.0,67814.0,0.01271302]
[1729852968414,0.17355843,67815.0,67814.0,0.14911]
[1729852968618,0.17355843,67815.0,67814.0,0.001648]
[1729852968619,0.2177772,67815.0,67814.0,0.001648]
[1729852968824,0.2177772,67815.0,67814.0,0.16017588]
[1729852969247,0.2177772,67815.0,67814.0,0.01271388]
[1729852972188,0.2177772,67815.0,67814.0,0.16017588]
[1729852973086,0.2177772,67815.0,67814.0,0.14911]
[1729852973333,0.2177772,67815.0,67814.0,0.16017597]
[1729852975174,0.2177772,67815.0,67814.0,0.01271397]
[1729852975376,0.2177772,67815.0,67814.0,0.16017597]
[1729852976011,0.2177772,67815.0,67814.0,0.14911]
[1729852976430,0.17355843,67815.0,67814.0,0.14911]
[1729852978031,0.08005843,67815.0,67814.0,0.14911]
[1729852980053,0.00115843,67815.0,67814.0,0.14911]
[1729852985262,0.00115843,67815.0,67814.0,0.1601675]
[1729852987732,0.00115843,67815.0,67814.0,0.17215618]
[1729852989002,0.00115843,67815.0,67814.0,0.16109868]
[1729852989614,0.00115843,67815.0,67814.0,0.17215451]
[1729852991060,0.00115843,67815.0,67814.0,0.18321098]
[1729852991275,0.00115843,67815.0,67814.0,0.17215515]
[1729852994796,0.00115843,67815.0,67814.0,0.16109832]
[1729852995033,0.00115843,67815.0,67814.0,0.1721544]
[1729852997586,0.00115843,67815.0,67814.0,0.16016608]
[1729852998011,0.00115843,67816.0,67815.0,0.0981]
[1729852998246,0.00115843,67816.0,67815.0,0.61307501]
[1729852998480,0.00115843,67816.0,67815.0,0.50938454]
[1729852999324,0.00115843,67816.0,67815.0,0.52137218]
[1729852999952,0.00115843,67816.0,67815.0,0.50938454]
[1729853000171,0.00115843,67816.0,67815.0,0.52043806]
[1729853000603,0.00115843,67816.0,67815.0,0.51865013]
[1729853002170,0.00115843,67816.0,67815.0,0.51686285]
[1729853002560,0.00115843,67816.0,67815.0,0.48574288]
[1729853002786,0.00115843,67816.0,67815.0,0.48746353]
[1729853004032,0.00115843,67816.0,67815.0,0.49484057]
[1729853005183,0.00115843,67816.0,67815.0,0.48285288]
[1729853009936,0.00115843,67816.0,67815.0,0.49390128]
[1729853010650,0.00115843,67816.0,67815.0,0.50588884]
[1729853012075,0.00115843,67816.0,67815.0,0.50588678]
[1729853014267,0.00115843,67816.0,67815.0,0.4654129]
[1729853016080,0.00115843,67816.0,67815.0,0.46541265]
[1729853020900,0.00115843,67817.0,67816.0,0.147457]
[1729853021107,0.00115843,67817.0,67816.0,0.27418112]
[1729853021948,0.00098096,67817.0,67816.0,0.27418112]
[1729853027057,0.00098096,67817.0,67816.0,0.26313469]
[1729853027338,0.00098096,67817.0,67816.0,0.2741908]
[1729853032560,0.00180496,67817.0,67816.0,0.2741908]
[1729853033216,0.00180496,67817.0,67816.0,0.17050033]
[1729853033627,0.00180496,67817.0,67816.0,0.2741908]
[1729853034642,0.00180496,67817.0,67816.0,0.27419057]
[1729853038281,0.00180496,67817.0,67816.0,0.26220358]
[1729853038493,0.00180496,67817.0,67816.0,0.26313456]
[1729853038917,0.00180496,67817.0,67816.0,0.27419307]
[1729853040299,0.00180496,67817.0,67816.0,0.42764576]
[1729853040300,0.000824,67817.0,67816.0,0.42764576]
[1729853040502,0.00180496,67817.0,67816.0,0.42469688]
[1729853040747,0.00180496,67817.0,67816.0,0.46889917]
[1729853040928,0.00180496,67817.0,67816.0,0.42469688]
[1729853041167,0.00180496,67817.0,67816.0,0.44587009]
[1729853041377,0.00180496,67817.0,67816.0,0.46153823]
[1729853041595,0.00180496,67817.0,67816.0,0.46891658]
[1729853041997,0.00180496,67817.0,67816.0,0.42469565]
[1729853042352,0.00180496,67817.0,67816.0,0.46891658]
[1729853042562,0.00180496,67817.0,67816.0,0.42469565]
[1729853043088,0.00180496,67817.0,67816.0,0.46891617]
[1729853044714,0.000824,67817.0,67816.0,0.42634234]
[1729853044930,0.00180496,67817.0,67816.0,0.47056657]
[1729853045361,0.00180496,67817.0,67816.0,0.47056604]
[1729853045584,0.00180496,67817.0,67816.0,0.42634234]
[1729853058283,0.00180496,67817.0,67816.0,0.47056646]
[1729853059542,0.00180496,67817.0,67816.0,0.47056667]
[1729853060382,0.00180496,67817.0,67816.0,0.42634255]
[1729853062797,0.000824,67817.0,67816.0,0.95872369]
[1729853063049,0.000824,67817.0,67816.0,1.09139607]
[1729853063248,0.000824,67817.0,67816.0,0.95872213]
[1729853063455,0.000824,67817.0,67816.0,0.95872028]
[1729853063652,0.000824,67817.0,67816.0,0.96976854]
[1729853064062,0.000824,67817.0,67816.0,0.95871341]
[1729853065692,0.000824,67817.0,67816.0,0.75133247]
[1729853065963,0.000824,67817.0,67816.0,0.57163247]
[1729853065964,0.091924,67817.0,67816.0,0.57163247]
[1729853066186,0.091924,67817.0,67816.0,0.48893037]
[1729853066398,0.091924,67817.0,67816.0,0.27213799]
[1729853066850,0.091924,67817.0,67816.0,0.27213901]
[1729853067121,0.091924,67817.0,67816.0,0.37582948]
[1729853067357,0.09290496,67817.0,67816.0,0.17213901]
[1729853068054,0.09290496,67817.0,67816.0,0.1601524]
[1729853068271,0.09290496,67817.0,67816.0,0.17213926]
[1729853070630,0.09290496,67817.0,67816.0,0.16476362]
[1729853070842,0.09290496,67817.0,67816.0,0.17214016]
[1729853077441,0.09290496,67817.0,67816.0,0.192933]
[1729853081208,0.09290496,67817.0,67816.0,0.192931]
[1729853084858,0.09290496,67817.0,67816.0,0.18555468]
[1729853088324,0.09290496,67817.0,67816.0,0.17450836]
[1729853088579,0.09290496,67817.0,67816.0,0.185554]
[1729853090129,0.09290496,67817.0,67816.0,0.28924447]
[1729853094454,0.09290496,67817.0,67816.0,0.185554]
[1729853099316,0.09290496,67817.0,67816.0,0.16989784]
[1729853099550,0.09290496,67817.0,67816.0,0.18556669]
[1729853100485,0.19659543,67817.0,67816.0,0.16477385]
[1729853100708,0.17220496,67817.0,67816.0,0.16477385]
[1729853101889,0.17220496,67817.0,67816.0,0.16016341]
[1729853102101,0.17220496,67817.0,67816.0,0.16477411]
[1729853102849,0.17220496,67817.0,67816.0,0.26846458]
[1729853102850,0.00180496,67817.0,67816.0,0.26846458]
[1729853105628,0.00180496,67817.0,67816.0,0.149105]
[1729853105842,0.00180496,67817.0,67816.0,0.16405671]
[1729853106466,0.00180496,67817.0,67816.0,0.16334241]
[1729853107109,0.00180496,67817.0,67816.0,0.15977191]
[1729853108445,0.00180496,67817.0,67816.0,0.15116846]
[1729853108660,0.17830496,67817.0,67816.0,0.15116846]
[1729853109768,0.17830496,67817.0,67816.0,0.1401128]
[1729853110844,0.17830496,67817.0,67816.0,0.13705858]
[1729853116220,0.17678064,67817.0,67816.0,0.13705858]
[1729853123806,0.17678064,67817.0,67816.0,0.13705898]
[1729853127288,0.17678064,67817.0,67816.0,0.13244797]
[1729853127714,0.17678064,67817.0,67816.0,0.13705887]
[1729853127929,0.17760464,67817.0,67816.0,0.13705887]
[1729853132154,0.00110464,67817.0,67816.0,0.13705887]
[1729853132837,0.00110464,67817.0,67816.0,0.24369813]
[1729853133061,0.00110464,67817.0,67816.0,0.14000766]
[1729853133712,0.00110464,67817.0,67816.0,0.33698901]
[1729853133941,0.00110464,67817.0,67816.0,0.33404022]
[1729853134786,0.00110464,67817.0,67816.0,0.43773069]
[1729853135007,0.000824,67817.0,67816.0,0.33404022]
[1729853135265,0.00110464,67817.0,67816.0,0.33404022]
[1729853136104,0.000824,67817.0,67816.0,0.43773069]
[1729853138125,0.000824,67817.0,67816.0,0.43772998]
[1729853138976,0.000824,67817.0,67816.0,0.68823379]
[1729853139205,0.000824,67817.0,67816.0,0.83890739]
[1729853139418,0.000824,67817.0,67816.0,0.84351729]
[1729853139637,0.000824,67817.0,67816.0,0.93678845]
[1729853140278,0.000824,67817.0,67816.0,0.93607975]
[1729853141376,0.000824,67817.0,67816.0,0.6932335]
[1729853141854,0.000824,67817.0,67816.0,0.6882335]
[1729853142056,0.000824,67817.0,67816.0,0.6932335]
[1729853142264,0.000824,67817.0,67816.0,0.6882335]
[1729853142915,0.000824,67817.0,67816.0,0.6932335]
[1729853143387,0.000824,67817.0,67816.0,0.84803188]
[1729853143597,0.000824,67817.0,67816.0,0.74434141]
[1729853143803,0.000824,67817.0,67816.0,0.58954303]
[1729853144009,0.000824,67817.0,67816.0,0.6932335]
[1729853144736,0.000824,67817.0,67816.0,0.70060948]
[1729853149091,0.000824,67817.0,67816.0,0.70060916]
[1729853152646,0.000824,67817.0,67816.0,0.70060915]
[1729853152870,0.000824,67817.0,67816.0,0.74467245]
[1729853153764,0.000824,67817.0,67816.0,0.70060915]
[1729853154216,0.000824,67817.0,67816.0,0.42081868]
[1729853154433,0.000824,67817.0,67816.0,0.41581868]
[1729853159576,0.000824,67817.0,67816.0,0.26531487]
[1729853159776,0.000824,67817.0,67816.0,0.2370578]
[1729853159992,0.000824,67817.0,67816.0,0.34812457]
[1729853160413,0.000824,67817.0,67816.0,0.2444341]
[1729853160838,0.00110464,67817.0,67816.0,0.1444341]
[1729853161039,0.17330464,67817.0,67816.0,0.1444341]
[1729853162276,0.17330464,67817.0,67816.0,0.13705802]
[1729853162484,0.17330464,67817.0,67816.0,0.14443557]
[1729853164659,0.17330464,67817.0,67816.0,0.13705858]
[1729853165377,0.17330464,67817.0,67816.0,0.13244797]
[1729853165842,0.17330464,67817.0,67816.0,0.13705897]
[1729853166701,0.17330464,67817.0,67816.0,0.13244797]
[1729853167586,0.17330464,67817.0,67816.0,0.13705888]
[1729853167823,0.17330464,67817.0,67816.0,0.13244797]
[1729853168048,0.17330464,67817.0,67816.0,0.13705889]
[1729853168677,0.17330464,67817.0,67816.0,0.13244797]
[1729853168892,0.17330464,67817.0,67816.0,0.13705887]
[1729853169774,0.17330464,67817.0,67816.0,0.13244797]
[1729853171294,0.015,67822.0,67817.0,0.294911]
[1729853171295,0.22144961,67822.0,67817.0,0.294911]
[1729853171509,0.22144961,67822.0,67816.0,0.001648]
[1729853171715,0.22144961,67822.0,67816.0,0.296561]
[1729853171938,0.22144961,67822.0,67817.0,0.294911]
[1729853172150,0.22144961,67822.0,67820.0,0.147448]
[1729853172663,0.10369047,67823.0,67820.0,0.147448]
[1729853172877,0.25419428,67823.0,67818.0,0.147452]
[1729853173088,0.25419428,67823.0,67821.0,0.147446]
[1729853173308,0.25419428,67823.0,67817.0,0.294911]
[1729853173525,0.25419428,67823.0,67818.0,0.294903]
[1729853173749,0.25419428,67823.0,67818.0,0.442355]
[1729853173993,0.25419428,67823.0,67818.0,0.294903]
[1729853174220,0.1701,67821.0,67818.0,0.147452]
[1729853174468,0.15050381,67822.0,67819.0,0.14745]
[1729853174469,0.1701,67820.0,67819.0,0.14745]
[1729853175414,0.25619428,67820.0,67816.0,0.001648]
[1729853175651,0.10369047,67817.0,67816.0,0.001648]
[1729853175882,0.42429428,67817.0,67816.0,0.001648]
[1729853176133,0.57174928,67817.0,67816.0,0.001648]
[1729853176373,0.42429428,67817.0,67816.0,0.001648]
[1729853177069,0.57174928,67817.0,67816.0,0.001648]
[1729853177302,0.67543975,67817.0,67816.0,0.001648]
[1729853177536,0.57174928,67817.0,67816.0,0.001648]
[1729853180259,0.75189354,67817.0,67816.0,0.001648]
[1729853180545,0.69843975,67817.0,67816.0,0.001648]
[1729853180762,0.70043975,67817.0,67816.0,0.001648]
[1729853181010,0.69843975,67817.0,67816.0,0.001648]
[1729853187348,0.79843975,67817.0,67816.0,0.001648]
[1729853187560,0.94894356,67817.0,67816.0,0.001648]
[1729853188257,0.69474928,67817.0,67816.0,0.001648]
[1729853189144,0.79843975,67817.0,67816.0,0.001648]
[1729853189355,0.69474928,67817.0,67816.0,0.001648]
[1729853193986,0.69674928,67817.0,67816.0,0.001648]
[1729853194206,0.80043975,67817.0,67816.0,0.001648]
[1729853194424,0.95094356,67817.0,67816.0,0.001648]
[1729853199275,0.80043975,67817.0,67816.0,0.00142211]
[1729853199944,0.79843975,67817.0,67816.0,0.00142211]
[1729853200372,0.80043975,67817.0,67816.0,0.00142211]
[1729853203537,0.84449932,67817.0,67816.0,0.00142211]
[1729853204621,0.80043975,67817.0,67816.0,0.00142211]
[1729853205226,0.59305881,67817.0,67816.0,0.00142211]
[1729853205402,0.80043975,67817.0,67816.0,0.00142211]
[1729853207574,0.86661232,67817.0,67816.0,0.00142211]
[1729853207940,0.80043975,67817.0,67816.0,0.00142211]
[1729853209202,0.80043975,67817.0,67816.0,0.00116884]
[1729853212727,0.94796822,67817.0,67816.0,0.00116884]
[1729853212957,0.48716636,67817.0,67816.0,0.00116884]
[1729853213182,0.29795881,67817.0,67816.0,0.00116884]
[1729853215052,0.29799881,67817.0,67816.0,0.00116884]
[1729853219179,0.34213675,67817.0,67816.0,0.00116884]
[1729853220098,0.34413675,67817.0,67816.0,0.00116884]
[1729853220328,0.29799881,67817.0,67816.0,0.00116884]
[1729853221222,0.40168928,67817.0,67816.0,0.00116884]
[1729853221434,0.46797633,67817.0,67816.0,0.00116884]
[1729853224044,0.46799848,67817.0,67816.0,0.00116884]
[1729853224987,0.46999848,67817.0,67816.0,0.00116884]
[1729853225252,0.8040836,67817.0,67816.0,0.00116884]
[1729853225488,0.69356826,67817.0,67816.0,0.00116884]
[1729853231621,0.69360001,67817.0,67816.0,0.00116884]
[1729853232034,0.58990954,67817.0,67816.0,0.00116884]
[1729853232255,0.48621907,67817.0,67816.0,0.00116884]
[1729853232480,0.58790954,67817.0,67816.0,0.00116884]
[1729853232728,0.69844652,67817.0,67816.0,0.00116884]
[1729853233126,0.67633691,67817.0,67816.0,0.00116884]
[1729853233349,0.67632152,67817.0,67816.0,0.00116884]
[1729853233563,0.67832152,67817.0,67816.0,0.00116884]
[1729853233771,0.58989539,67817.0,67816.0,0.00116884]
[1729853234493,0.48620492,67817.0,67816.0,0.00116884]
[1729853234709,0.58789539,67817.0,67816.0,0.00116884]
[1729853235361,0.69842651,67817.0,67816.0,0.00116884]
[1729853235784,0.69925051,67817.0,67816.0,0.00116884]
[1729853236871,0.58871939,67817.0,67816.0,0.00116884]
[1729853238033,0.58872357,67817.0,67816.0,0.00116884]
[1729853239801,0.56572357,67817.0,67816.0,0.00116884]
[1729853240233,0.56772357,67817.0,67816.0,0.00116884]
[1729853249382,0.67825752,67817.0,67816.0,0.00116884]
[1729853249872,0.56772357,67817.0,67816.0,0.00116884]
[1729853250310,0.67825752,67817.0,67816.0,0.00116884]
[1729853253883,0.78194799,67817.0,67816.0,0.00116884]
[1729853254334,0.67825752,67817.0,67816.0,0.00116884]
[1729853254561,0.78194799,67817.0,67816.0,0.00116884]
[1729853255544,0.67825752,67817.0,67816.0,0.00116884]
[1729853256455,0.88114799,67817.0,67816.0,0.00116884]
[1729853257123,0.77745752,67817.0,67816.0,0.00116884]
[1729853259903,0.66692357,67817.0,67816.0,0.00116884]
[1729853260161,0.77745752,67817.0,67816.0,0.00116884]
[1729853260378,0.66692357,67817.0,67816.0,0.00116884]
[1729853261286,0.66700093,67817.0,67816.0,0.00116884]
[1729853265941,0.66701881,67817.0,67816.0,0.00116884]
[1729853267367,0.77070928,67817.0,67816.0,0.00116884]
[1729853267577,0.79370928,67817.0,67816.0,0.00116884]
[1729853267797,0.8395728,67817.0,67816.0,0.00116884]
[1729853268451,0.9180728,67817.0,67816.0,0.00116884]
[1729853268897,1.04879095,67817.0,67816.0,0.00116884]
[1729853269333,1.15079095,67817.0,67816.0,0.00116884]
[1729853269566,1.1710167,67817.0,67816.0,0.00116884]
[1729853269793,1.03629855,67817.0,67816.0,0.00116884]
[1729853270536,1.03630327,67817.0,67816.0,0.00116884]
[1729853270964,1.18680708,67817.0,67816.0,0.00116884]
[1729853271384,1.31951923,67817.0,67816.0,0.00116884]
[1729853274781,1.4232097,67817.0,67816.0,0.00116884]
[1729853275032,1.31951923,67817.0,67816.0,0.00116884]
[1729853275972,1.18680708,67817.0,67816.0,0.00116884]
[1729853276711,1.14304255,67817.0,67815.0,0.001648]
[1729853276933,0.95473839,67816.0,67815.0,0.001648]
[1729853278367,0.1741,67814.0,67812.0,0.001648]
[1729853278594,0.92809739,67816.0,67797.0,0.001648]
[1729853278595,0.45306894,67802.0,67797.0,0.001648]
[1729853278814,0.58799253,67802.0,67798.0,0.096548]
[1729853279489,0.69846592,67802.0,67798.0,0.096548]
[1729853280170,0.21679065,67802.0,67801.0,0.171748]
[1729853280380,0.19469592,67802.0,67801.0,0.171748]
[1729853280803,0.15050381,67802.0,67801.0,0.319238]
[1729853281462,0.15050381,67802.0,67801.0,0.171748]
[1729853281684,0.04419211,67807.0,67806.0,0.147479]
[1729853281897,0.15050381,67807.0,67806.0,0.147479]
[1729853282766,0.04419211,67810.0,67809.0,0.147473]
[1729853283016,0.15050381,67810.0,67809.0,0.1784]
[1729853283204,0.15050381,67810.0,67809.0,0.325873]
[1729853284750,0.15050381,67810.0,67809.0,0.1784]
[1729853285981,0.15050381,67810.0,67809.0,0.325873]
[1729853286620,0.04419211,67815.0,67814.0,0.147462]
[1729853286832,0.15050381,67815.0,67814.0,0.321662]
[1729853287740,0.15050381,67815.0,67814.0,0.1742]
[1729853288395,0.15050381,67815.0,67814.0,0.321662]
[1729853288624,0.15050381,67815.0,67814.0,0.1742]
[1729853289081,0.04504808,67817.0,67816.0,0.147457]
[1729853289334,0.000864,67817.0,67816.0,0.323657]
[1729853291466,0.000864,67817.0,67816.0,0.333657]
[1729853295309,0.00068651,67817.0,67816.0,0.333657]
[1729853296236,0.00068651,67817.0,67816.0,0.328657]
[1729853296476,0.00068651,67817.0,67816.0,0.1812]
[1729853296717,0.00068651,67817.0,67814.0,0.005]
[1729853296718,0.39928898,67817.0,67814.0,0.005]
[1729853296943,0.25183298,67817.0,67814.0,0.005]
[1729853297154,0.147459,67816.0,67814.0,0.005]
[1729853297373,0.14746,67815.0,67814.0,0.005]
[1729853298248,0.39928798,67817.0,67812.0,0.0829]
[1729853298468,0.39928798,67817.0,67814.0,0.005]
[1729853298677,0.147458,67816.0,67814.0,0.005]
[1729853298888,0.14746,67815.0,67814.0,0.005]
[1729853299094,0.25183298,67817.0,67814.0,0.005]
[1729853299304,0.147458,67816.0,67814.0,0.005]
[1729853299528,0.25183198,67817.0,67814.0,0.005]
[1729853299740,0.147459,67816.0,67814.0,0.005]
[1729853299948,0.10437698,67817.0,67814.0,0.005]
[1729853300156,0.15050381,67815.0,67814.0,0.005]
[1729853300366,0.29796381,67815.0,67814.0,0.005]
[1729853300579,0.15050381,67815.0,67813.0,0.147463]
[1729853301264,0.15050381,67815.0,67814.0,0.147462]
[1729853301710,0.15050381,67815.0,67814.0,0.152462]
[1729853301915,0.15050381,67815.0,67814.0,0.147462]
[1729853303887,0.15050381,67815.0,67814.0,0.152462]
[1729853304932,0.15050381,67815.0,67814.0,0.147462]
[1729853305151,0.15050381,67815.0,67814.0,0.152462]
[1729853305332,0.15050381,67815.0,67814.0,0.147462]
[1729853305538,0.15050381,67815.0,67814.0,0.152462]
[1729853306442,0.15050381,67815.0,67814.0,0.15411]
[1729853306633,0.15050381,67815.0,67814.0,0.14911]
[1729853306871,0.15050381,67815.0,67814.0,0.15411]
[1729853310654,0.15050381,67815.0,67814.0,0.14911]
[1729853313180,0.15050381,67815.0,67814.0,0.15411]
[1729853314261,0.15050381,67815.0,67814.0,0.14911]
[1729853321678,0.00068651,67817.0,67816.0,0.147457]
[1729853321881,0.15119032,67817.0,67816.0,0.147457]
[1729853326471,0.00068651,67817.0,67816.0,0.147457]
[1729853326690,0.00068651,67817.0,67816.0,0.244157]
[1729853326925,0.00068651,67817.0,67816.0,0.26257889]
[1729853328249,0.00068651,67817.0,67816.0,0.25153445]
[1729853328894,0.00068651,67817.0,67816.0,0.244157]
[1729853331068,0.00068651,67817.0,67816.0,0.147457]
[1729853331552,0.00068651,67817.0,67816.0,0.149105]
[1729853331772,0.00068651,67817.0,67816.0,0.001648]
[1729853332018,0.25488079,67817.0,67816.0,0.001648]
[1729853332446,0.40233579,67817.0,67816.0,0.001648]
[1729853332675,0.25488079,67817.0,67816.0,0.001648]
[1729853332894,0.40233579,67817.0,67816.0,0.001648]
[1729853333118,0.47061928,67817.0,67816.0,0.001648]
[1729853333342,0.56552435,67817.0,67816.0,0.001648]
[1729853333561,0.46864678,67817.0,67816.0,0.001648]
[1729853334165,0.40233579,67817.0,67816.0,0.001648]
[1729853334383,0.46864756,67817.0,67816.0,0.001648]
[1729853335009,0.56553126,67817.0,67816.0,0.001648]